[Event "AI Cup Div-3 2023"]
[Site "Online"]
[Date "2023.09.26"]
[Round "53.2"]
[White "Kovalev, Vladislav"]
[Black "Muradli, Mahammad"]
[Result "1-0"]
[Annotator "ChessBase"]
[ECO "B52"]
[WhiteElo "2582"]
[BlackElo "2550"]
[PlyCount "87"]
[EventDate "2023.09.18"]
[EventType "k.o."]
[EventCountry "NET"]
[SourceTitle "playchess.com"]
[Source "ChessBase"]
[SourceQuality "1"]
[TimeControl "900+3"]

1. e4 {[%emt 0:00:03]} c5 {[%emt 0:00:04]} 2. Nf3 {[%emt 0:00:01]} d6 {[%emt 0:00:02]} 3. Bb5+ {[%emt 0:00:08]} Bd7 {[%emt 0:00:05]} 4. Bxd7+ {[%emt 0:00:01]} Nxd7 {[%emt 0:00:00]} 5. O-O {[%emt 0:00:08]} Ngf6 {[%emt 0:00:01]} 6. Qe2 {[%emt 0:00:01]} e6 {[%emt 0:00:03]} 7. c3 {[%emt 0:00:11]} Be7 {[%emt 0:00:02]} 8. d4 {[%emt 0:00:01]} O-O {[%emt 0:00:01]} 9. Bg5 {[%emt 0:01:18]} cxd4 {[%emt 0:01:23]} 10. cxd4 {[%emt 0:00:00]} d5 {[%emt 0:00:01]} 11. e5 {[%emt 0:00:22]} Ne4 {[%emt 0:00:28]} 12. Bxe7 {[%emt 0:00:01]} Qxe7 {[%emt 0:00:00]} 13. Nbd2 {[%emt 0:00:01]} Nxd2 {[%emt 0:00:04]} 14. Qxd2 {[%emt 0:00:00]} Rac8 {[%emt 0:00:16]} 15. Rfc1 {[%emt 0:00:04]} Nb8 {[%emt 0:00:06]} 16. g3 {[%emt 0:00:46]} h6 {[%emt 0:00:58]} 17. Kg2 {[%emt 0:00:17]} Rc6 {[%emt 0:00:17]} 18. Rxc6 {[%emt 0:00:05]} Nxc6 {[%emt 0:00:00]} 19. Rc1 {[%emt 0:00:01]} Rc8 {[%emt 0:00:02]} 20. Rc3 {[%emt 0:00:05]} Qd7 {[%emt 0:00:12]} 21. Qc2 {[%emt 0:00:32]} Ne7 {[%emt 0:00:25]} 22. Rxc8+ {[%emt 0:00:02]} Nxc8 {[%emt 0:00:00]} 23. h4 {[%emt 0:00:49]} Ne7 {[%emt 0:01:17]} 24. Qc5 {[%emt 0:00:06]} b6 {[%emt 0:01:10]} 25. Qc3 {[%emt 0:00:07]} h5 {[%emt 0:01:22]} 26. b4 {[%emt 0:00:43]} Qc6 {[%emt 0:02:34]} 27. Qd2 {[%emt 0:04:03]} Qc7 {[%emt 0:02:18]} 28. Qg5 {[%emt 0:01:13]} g6 {[%emt 0:00:02]} 29. b5 {[%emt 0:00:54]} Nf5 {[%emt 0:00:27]} 30. a4 {[%emt 0:00:26]} Qc8 {[%emt 0:01:02]} 31. Qf6 {[%emt 0:00:23]} Qf8 {[%emt 0:00:18]} 32. Qg5 {[%emt 0:00:27]} Nh6 {[%emt 0:00:17]} 33. Qc1 {[%emt 0:00:58]} Kg7 {[%emt 0:01:15]} 34. Qc7 {[%emt 0:00:09]} Qb4 {[%emt 0:00:07]} 35. Ng5 {[%emt 0:00:46]} Qxa4 {[%emt 0:00:06]} 36. Nxe6+ {[%emt 0:00:24]} Kh7 {[%emt 0:00:00]} 37. Ng5+ {[%emt 0:00:20]} Kg7 {[%emt 0:00:01]} 38. Nxf7 {[%emt 0:00:34]} Qc4 {[%emt 0:00:08]} 39. Qe7 {[%emt 0:00:19]} Nxf7 {[%emt 0:00:03]} 40. e6 {[%emt 0:00:01]} Qxd4 {[%emt 0:00:00]} 41. Qxf7+ {[%emt 0:00:01]} Kh6 {[%emt 0:00:04]} 42. Qf8+ {[%emt 0:00:01]} Kh7 {[%emt 0:00:02]} 43. Qf7+ {[%emt 0:00:01]} Kh6 {[%emt 0:00:01]} 44. e7 {[%emt 0:00:05]} 1-0

[Event "AI Cup Div-3 2023"]
[Site "Online"]
[Date "2023.09.26"]
[Round "53.2"]
[White "Beerdsen, Thomas"]
[Black "Durarbayli, Vasif"]
[Result "0-1"]
[Annotator "ChessBase"]
[ECO "C56"]
[WhiteElo "2511"]
[BlackElo "2625"]
[PlyCount "86"]
[EventDate "2023.09.18"]
[EventType "k.o."]
[EventCountry "NET"]
[SourceTitle "playchess.com"]
[Source "ChessBase"]
[SourceQuality "1"]
[TimeControl "900+3"]

1. e4 {[%emt 0:00:03]} e5 {[%emt 0:00:07]} 2. Nf3 {[%emt 0:00:02]} Nc6 {[%emt 0:00:01]} 3. Bc4 {[%emt 0:00:01]} Nf6 {[%emt 0:00:02]} 4. d4 {[%emt 0:00:01]} exd4 {[%emt 0:00:07]} 5. e5 {[%emt 0:00:01]} d5 {[%emt 0:00:19]} 6. Bb5 {[%emt 0:00:06]} Nd7 {[%emt 0:00:01]} 7. O-O {[%emt 0:00:01]} Be7 {[%emt 0:00:07]} 8. c3 {[%emt 0:00:01]} dxc3 {[%emt 0:00:34]} 9. Nxc3 {[%emt 0:00:02]} Nb6 {[%emt 0:00:44]} 10. a4 {[%emt 0:00:03]} a6 {[%emt 0:00:46]} 11. Bxc6+ {[%emt 0:00:02]} bxc6 {[%emt 0:00:00]} 12. a5 {[%emt 0:00:01]} Nd7 {[%emt 0:00:01]} 13. Nd4 {[%emt 0:00:00]} Nb8 {[%emt 0:00:07]} 14. f4 {[%emt 0:00:13]} c5 {[%emt 0:00:09]} 15. Nc2 {[%emt 0:00:22]} d4 {[%emt 0:00:23]} 16. Qf3 {[%emt 0:00:44]} c6 {[%emt 0:00:32]} 17. f5 {[%emt 0:01:38]} dxc3 {[%emt 0:00:08]} 18. f6 {[%emt 0:00:02]} gxf6 {[%emt 0:02:02]} 19. exf6 {[%emt 0:00:02]} Bd6 {[%emt 0:00:51]} 20. Bf4 {[%emt 0:02:00]} Bxf4 {[%emt 0:00:10]} 21. Qxf4 {[%emt 0:00:33]} Be6 {[%emt 0:00:14]} 22. Rad1 {[%emt 0:01:13]} Nd7 {[%emt 0:00:26]} 23. Qd6 {[%emt 0:00:21]} cxb2 {[%emt 0:01:59]} 24. Ne3 {[%emt 0:04:44]} Rb8 {[%emt 0:01:44]} 25. Nc4 {[%emt 0:00:53]} b1=Q {[%emt 0:00:45]} 26. Rxb1 {[%emt 0:01:48]} Rxb1 {[%emt 0:00:02]} 27. Rxb1 {[%emt 0:00:00]} Bxc4 {[%emt 0:00:19]} 28. Rb7 {[%emt 0:00:04]} Be6 {[%emt 0:00:21]} 29. Ra7 {[%emt 0:00:10]} Nxf6 {[%emt 0:01:26]} 30. Qxc6+ {[%emt 0:00:02]} Bd7 {[%emt 0:00:24]} 31. Qd6 {[%emt 0:00:04]} Be6 {[%emt 0:01:15]} 32. Qc6+ {[%emt 0:00:03]} Bd7 {[%emt 0:00:01]} 33. Qxc5 {[%emt 0:00:02]} Qb8 {[%emt 0:00:12]} 34. h3 {[%emt 0:00:30]} Qb1+ {[%emt 0:00:02]} 35. Kh2 {[%emt 0:00:02]} Qb8+ {[%emt 0:00:00]} 36. g3 {[%emt 0:00:07]} Rg8 {[%emt 0:00:11]} 37. Qe3+ {[%emt 0:00:08]} Be6 {[%emt 0:00:02]} 38. Rxa6 {[%emt 0:00:02]} Qb2+ {[%emt 0:00:02]} 39. Kg1 {[%emt 0:00:01]} Qb1+ {[%emt 0:00:01]} 40. Kg2 {[%emt 0:00:02]} Qb2+ {[%emt 0:00:06]} 41. Kf1 {[%emt 0:00:03]} Qb5+ {[%emt 0:00:04]} 42. Qe2 {[%emt 0:00:09]} Qxe2+ {[%emt 0:00:02]} 43. Kxe2 {[%emt 0:00:00]} Bc4+ {[%emt 0:00:00]} 0-1

[Event "AI Cup Div-3 2023"]
[Site "Online"]
[Date "2023.09.26"]
[Round "53.3"]
[White "Kravtsiv, Martyn"]
[Black "Demchenko, Anton"]
[Result "0-1"]
[Annotator "ChessBase"]
[ECO "C50"]
[WhiteElo "2598"]
[BlackElo "2608"]
[PlyCount "106"]
[EventDate "2023.09.18"]
[EventType "k.o."]
[EventCountry "NET"]
[SourceTitle "playchess.com"]
[Source "ChessBase"]
[SourceQuality "1"]
[TimeControl "900+3"]

1. e4 {[%emt 0:00:07]} e5 {[%emt 0:00:07]} 2. Nf3 {[%emt 0:00:04]} Nc6 {[%emt 0:05:12]} 3. Bc4 {[%emt 0:00:05]} Be7 {[%emt 0:00:04]} 4. d4 {[%emt 0:01:14]} d6 {[%emt 0:00:05]} 5. Bb5 {[%emt 0:01:04]} Bd7 {[%emt 0:00:13]} 6. d5 {[%emt 0:00:12]} Nb8 {[%emt 0:00:06]} 7. Bd3 {[%emt 0:00:04]} Nf6 {[%emt 0:00:13]} 8. c4 {[%emt 0:00:06]} O-O {[%emt 0:00:09]} 9. Nc3 {[%emt 0:00:04]} a5 {[%emt 0:00:19]} 10. h3 {[%emt 0:00:22]} Na6 {[%emt 0:00:05]} 11. Be3 {[%emt 0:00:04]} b6 {[%emt 0:00:56]} 12. Qe2 {[%emt 0:00:15]} Nc5 {[%emt 0:00:10]} 13. Bc2 {[%emt 0:00:06]} c6 {[%emt 0:00:05]} 14. Bxc5 {[%emt 0:01:33]} bxc5 {[%emt 0:00:06]} 15. dxc6 {[%emt 0:00:05]} Bxc6 {[%emt 0:00:05]} 16. a4 {[%emt 0:00:04]} Nh5 {[%emt 0:00:16]} 17. g3 {[%emt 0:00:09]} g6 {[%emt 0:00:04]} 18. O-O-O {[%emt 0:00:15]} Qb8 {[%emt 0:00:14]} 19. Nb5 {[%emt 0:00:17]} Rc8 {[%emt 0:00:06]} 20. Kb1 {[%emt 0:02:09]} Ng7 {[%emt 0:00:33]} 21. h4 {[%emt 0:00:41]} Ne6 {[%emt 0:00:27]} 22. h5 {[%emt 0:00:07]} g5 {[%emt 0:00:08]} 23. Nd2 {[%emt 0:00:22]} Nd4 {[%emt 0:00:39]} 24. Qd3 {[%emt 0:01:16]} Qb7 {[%emt 0:01:42]} 25. Rhe1 {[%emt 0:00:45]} h6 {[%emt 0:00:05]} 26. Bb3 {[%emt 0:00:10]} Qd7 {[%emt 0:00:13]} 27. f3 {[%emt 0:01:11]} Bf8 {[%emt 0:00:39]} 28. Ba2 {[%emt 0:00:06]} Qd8 {[%emt 0:00:25]} 29. Rf1 {[%emt 0:00:12]} Bd7 {[%emt 0:00:07]} 30. Rf2 {[%emt 0:00:15]} Kh8 {[%emt 0:00:14]} 31. Rg1 {[%emt 0:00:06]} Qf6 {[%emt 0:00:16]} 32. Rgf1 {[%emt 0:00:13]} Bh3 {[%emt 0:00:07]} 33. Rh1 {[%emt 0:00:05]} Be6 {[%emt 0:00:04]} 34. Ka1 {[%emt 0:00:10]} Bg7 {[%emt 0:00:08]} 35. Bb1 {[%emt 0:00:07]} Nxb5 {[%emt 0:00:10]} 36. axb5 {[%emt 0:00:05]} a4 {[%emt 0:00:03]} 37. Ka2 {[%emt 0:00:07]} Rcb8 {[%emt 0:00:14]} 38. Ka3 {[%emt 0:00:30]} Qd8 {[%emt 0:00:06]} 39. Qc3 {[%emt 0:00:12]} Kg8 {[%emt 0:00:05]} 40. Bd3 {[%emt 0:00:04]} Qe7 {[%emt 0:00:11]} 41. Nb1 {[%emt 0:00:05]} d5 {[%emt 0:00:07]} 42. Nd2 {[%emt 0:00:25]} dxc4 {[%emt 0:00:11]} 43. Bxc4 {[%emt 0:00:06]} Bxc4 {[%emt 0:00:05]} 44. Qxc4 {[%emt 0:00:03]} Ra5 {[%emt 0:00:04]} 45. Ka2 {[%emt 0:00:22]} Raxb5 {[%emt 0:00:10]} 46. Nb1 {[%emt 0:00:03]} Rb4 {[%emt 0:00:04]} 47. Qc2 {[%emt 0:00:05]} Qe6+ {[%emt 0:00:08]} 48. Ka1 {[%emt 0:00:04]} c4 {[%emt 0:00:04]} 49. Rd1 {[%emt 0:00:05]} Bf8 {[%emt 0:00:04]} 50. Rd5 {[%emt 0:00:05]} Qa6 {[%emt 0:00:06]} 51. Rfd2 {[%emt 0:00:15]} a3 {[%emt 0:00:05]} 52. Nxa3 {[%emt 0:00:11]} Rxb2 {[%emt 0:00:04]} 53. Qxb2 {[%emt 0:00:14]} Rxb2 {[%emt 0:00:03]} 0-1

[Event "AI Cup Div-3 2023"]
[Site "Online"]
[Date "2023.09.27"]
[Round "54.1"]
[White "Tomashevsky, Evgeny"]
[Black "Radjabov, Teimour"]
[Result "1-0"]
[Annotator "TA"]
[ECO "D85"]
[WhiteElo "2694"]
[BlackElo "2745"]
[PlyCount "69"]
[EventDate "2023.09.18"]
[EventType "k.o."]
[EventCountry "NET"]
[SourceTitle "playchess.com"]
[Source "ChessBase"]
[SourceQuality "1"]
[TimeControl "900+3"]

{[%evp 19,69,22,48,37,43,1,63,19,85,0,0,0,0,0,0,0,29,28,48,47,97,15,12,15,25,21,28,0,0,0,21,20,14,0,0,-7,30,31,17,0,0,0,12,0,89,88,226,237,188,137,902,885]} 1. c4 {[%emt 0:00:06]} g6 {[%emt 0:00:14]} 2. d4 {[%emt 0:00:07]} Nf6 {[%emt 0:00:06]} 3. Nc3 {[%emt 0:00:15]} d5 {[%emt 0:00:25]} 4. cxd5 {[%emt 0:00:02]} Nxd5 {[%emt 0:00:01]} 5. e4 {[%emt 0:00:01]} Nxc3 {[%emt 0:00:01]} 6. bxc3 {[%emt 0:00:01]} Bg7 {[%emt 0:00:02]} 7. Nf3 {[%emt 0:00:02]} O-O {[%emt 0:00:12]} 8. Be2 {[%emt 0:01:01]} b6 {[%emt 0:00:10]} 9. O-O {[%emt 0:00:07]} Bb7 {[%emt 0:00:01]} 10. Qd3 {[%emt 0:00:06]} Nd7 {[%emt 0:00:07]} 11. Bg5 {[%emt 0:00:43] D85: Exchange Grünfeld: Unusual White 7th moves and lines with 7 Nf3.} (11. e5 {is more complex.} e6 12. Ng5 c5 13. f4) 11... h6 {[%emt 0:00:07]} 12. Bf4 {[%emt 0:00:41] [#]} e6 $146 {[%emt 0:02:18]} ({Black should play} 12... e5 $11 13. Nxe5 (13. Bxe5 Re8 $11) 13... Nxe5 14. Bxe5 Re8) ({Predecessor:} 12... c5 13. d5 g5 14. Bd2 Qc7 15. g3 e6 16. c4 Bxa1 17. Rxa1 f5 18. Bc3 Nf6 {½-½ Campani,P (1450)-Wideman,D (1805) W-ch WS/O/1075 email 2018}) 13. Rfe1 {[%emt 0:00:37] White is more active. White is slightly better.} Re8 {[%emt 0:00:24]} (13... e5 $11 14. Nxe5 (14. Bxe5 Nxe5 15. Nxe5 Bxe5 $11) 14... Nxe5 15. Bxe5 Bxe5 16. dxe5 Qg5) 14. Qe3 {[%emt 0:02:53]} (14. e5 $16) 14... e5 $11 {[%emt 0:06:36]} 15. dxe5 {[%emt 0:00:03]} Nxe5 {[%emt 0:00:06]} 16. Bxe5 {[%emt 0:00:56]} (16. Bxh6 $2 {is the wrong capture.} Ng4 17. Bg5 Nxe3 $19) 16... Bxe5 {[%emt 0:00:03]} 17. Bb5 {[%emt 0:00:01] [#] Threatens to win with Rad1.} ({Of course not} 17. Qxh6 Bg7 18. Qc1 Rxe4 $17) 17... c6 {[%emt 0:01:03]} (17... Re7 $5) 18. Nxe5 {[%emt 0:00:22]} Rxe5 {[%emt 0:00:24]} 19. Bc4 {[%emt 0:00:10][%cal Oa1d1] Black must now prevent Rad1!} Qf8 {[%emt 0:00:45]} ({Black should try} 19... b5 $14 20. Qf4 Re7) 20. Rad1 {[%emt 0:00:48]} (20. Qg3 $16 Qg7 21. Rad1) 20... Rae8 {[%emt 0:00:08]} 21. Rd7 {[%emt 0:02:31][%csl LRb7,LRf7]} R5e7 {[%emt 0:00:06]} 22. Rxe7 {[%emt 0:01:41]} Rxe7 {[%emt 0:00:04]} 23. h4 {[%emt 0:00:09]} (23. e5 {simplifies} Bc8 24. Qe4 Be6 25. Qxc6 Qe8 26. Qxe8+ Rxe8 27. Bxe6 Rxe6 28. Kf1) 23... Bc8 {[%emt 0:00:26]} 24. h5 {[%emt 0:00:16]} gxh5 {[%emt 0:00:03]} 25. Qg3+ {[%emt 0:00:42]} Qg7 {[%emt 0:00:37] ...Qxg3 is the strong threat.} 26. Qd6 {[%emt 0:00:04][%mdl 1024] White has compensation.} Bh3 {[%emt 0:00:48][%csl Gh3][%cal Rg7g2]} 27. Bf1 {[%emt 0:00:35] Really sharp!} (27. Qxe7 $2 Qxg2#) 27... Re8 {[%emt 0:00:40]} (27... Rd7 $5 {[%cal Rd7d6]} 28. Qxc6 Be6 $11) 28. Re3 $36 {[%emt 0:00:17][%mdl 2048] White fights for an advantage.} Bg4 {[%emt 0:00:01]} 29. e5 {[%emt 0:00:16]} Qg6 {[%emt 0:00:13] ...Qxd6 would be deadly.} 30. Qc7 {[%emt 0:00:11]} h4 {[%emt 0:00:08]} 31. Qxa7 {[%emt 0:00:08]} c5 {[%emt 0:00:02]} ({Much less strong is} 31... Qb1 32. Qa4 Be6 33. Qxh4 $16) (31... Rd8 $11 {keeps the balance.}) 32. Bd3 $16 {[%emt 0:00:10]} Qe6 {[%emt 0:00:01] [#]} (32... Qc6 $16) 33. Qa4 $1 $18 {[%emt 0:00:08]} Rd8 {[%emt 0:00:06]} 34. Qe4 {[%emt 0:00:02] Prevents Bf5.} (34. Qf4 $18 {Hoping for f3.} b5 35. Bxb5) 34... Bh5 {[%emt 0:00:13][%mdl 8192]} (34... Qg6 $16) 35. Qxh4 {[%emt 0:00:12] Weighted Error Value: White=0.16 (very precise) /Black=0.25 (precise)} 1-0

[Event "AI Cup Div-3 2023"]
[Site "Online"]
[Date "2023.09.27"]
[Round "54.1"]
[White "Xiong, Jeffery"]
[Black "Durarbayli, Vasif"]
[Result "0-1"]
[Annotator "ChessBase"]
[ECO "C45"]
[WhiteElo "2693"]
[BlackElo "2625"]
[PlyCount "160"]
[EventDate "2023.09.18"]
[EventType "k.o."]
[EventCountry "NET"]
[SourceTitle "playchess.com"]
[Source "ChessBase"]
[SourceQuality "1"]
[TimeControl "900+3"]

1. e4 {[%emt 0:00:04]} e5 {[%emt 0:00:07]} 2. Nf3 {[%emt 0:00:01]} Nc6 {[%emt 0:00:01]} 3. d4 {[%emt 0:00:01]} exd4 {[%emt 0:00:01]} 4. Nxd4 {[%emt 0:00:00]} Bc5 {[%emt 0:00:02]} 5. Be3 {[%emt 0:00:03]} Qf6 {[%emt 0:00:04]} 6. c3 {[%emt 0:00:01]} Nge7 {[%emt 0:00:09]} 7. Bc4 {[%emt 0:00:02]} b6 {[%emt 0:00:07]} 8. O-O {[%emt 0:01:11]} Bb7 {[%emt 0:00:04]} 9. f4 {[%emt 0:00:08]} O-O-O {[%emt 0:00:35]} 10. Qd2 {[%emt 0:03:06]} Bxd4 {[%emt 0:03:40]} 11. cxd4 {[%emt 0:00:04]} d5 {[%emt 0:00:00]} 12. e5 {[%emt 0:00:23]} Qe6 {[%emt 0:00:02]} 13. Be2 {[%emt 0:01:07]} Kb8 {[%emt 0:00:47]} 14. Na3 {[%emt 0:00:18]} h5 {[%emt 0:00:50]} 15. Rac1 {[%emt 0:00:04]} Nf5 {[%emt 0:00:33]} 16. Nc2 {[%emt 0:01:13]} f6 {[%emt 0:00:54]} 17. Bd3 {[%emt 0:00:39]} Rdf8 {[%emt 0:00:53]} 18. Qc3 {[%emt 0:00:57]} Rf7 {[%emt 0:00:25]} 19. Rce1 {[%emt 0:01:20]} Rhf8 {[%emt 0:00:32]} 20. Nb4 {[%emt 0:00:34]} Nce7 {[%emt 0:03:11]} 21. Bd2 {[%emt 0:00:51]} fxe5 {[%emt 0:00:03]} 22. fxe5 {[%emt 0:00:29]} Nh4 {[%emt 0:00:33]} 23. Be2 {[%emt 0:00:31]} a5 {[%emt 0:00:17]} 24. Nd3 {[%emt 0:01:08]} Qg6 {[%emt 0:00:22]} 25. g3 {[%emt 0:00:00]} Nf3+ {[%emt 0:00:24]} 26. Bxf3 {[%emt 0:00:01]} Rxf3 {[%emt 0:00:01]} 27. Nf4 {[%emt 0:00:01]} Rxf1+ {[%emt 0:00:12]} 28. Rxf1 {[%emt 0:00:00]} Qf5 {[%emt 0:00:05]} 29. Qd3 {[%emt 0:00:30]} Qxd3 {[%emt 0:00:17]} 30. Nxd3 {[%emt 0:00:01]} Rxf1+ {[%emt 0:00:01]} 31. Kxf1 {[%emt 0:00:00]} Ba6 {[%emt 0:00:00]} 32. Ke2 {[%emt 0:00:00]} Kc8 {[%emt 0:00:22]} 33. Be3 {[%emt 0:00:08]} Kd7 {[%emt 0:00:12]} 34. Kd2 {[%emt 0:00:01]} Bxd3 {[%emt 0:00:01]} 35. Kxd3 {[%emt 0:00:00]} Ke6 {[%emt 0:00:00]} 36. Bg5 {[%emt 0:00:56]} Nc6 {[%emt 0:00:03]} 37. a3 {[%emt 0:00:16]} a4 {[%emt 0:00:10]} 38. Kc3 {[%emt 0:00:16]} Kf5 {[%emt 0:00:02]} 39. h4 {[%emt 0:00:02]} Ke6 {[%emt 0:00:02]} 40. Bc1 {[%emt 0:00:13]} Kd7 {[%emt 0:00:21]} 41. Bg5 {[%emt 0:00:05]} b5 {[%emt 0:00:01]} 42. Bf4 {[%emt 0:00:05]} Nd8 {[%emt 0:00:05]} 43. Kb4 {[%emt 0:00:02]} Kc6 {[%emt 0:00:04]} 44. Kc3 {[%emt 0:00:03]} Ne6 {[%emt 0:00:01]} 45. Be3 {[%emt 0:00:01]} Kb7 {[%emt 0:00:04]} 46. Kd3 {[%emt 0:00:01]} Kb6 {[%emt 0:00:01]} 47. Kc3 {[%emt 0:00:01]} Ka5 {[%emt 0:00:01]} 48. Bd2 {[%emt 0:00:01]} g6 {[%emt 0:00:08]} 49. Be3 {[%emt 0:00:02]} Kb6 {[%emt 0:00:03]} 50. Kb4 {[%emt 0:00:02]} Ng7 {[%emt 0:00:03]} 51. Kc3 {[%emt 0:00:02]} Kc6 {[%emt 0:00:02]} 52. Kd3 {[%emt 0:00:02]} Nf5 {[%emt 0:00:03]} 53. Bf2 {[%emt 0:00:02]} Ng7 {[%emt 0:00:06]} 54. Ke3 {[%emt 0:00:04]} Ne6 {[%emt 0:00:03]} 55. Be1 {[%emt 0:00:01]} Kd7 {[%emt 0:00:07]} 56. Bb4 {[%emt 0:00:02]} c6 {[%emt 0:00:19]} 57. Kd3 {[%emt 0:00:06]} Nc7 {[%emt 0:00:05]} 58. Bd2 {[%emt 0:00:10]} Ke6 {[%emt 0:00:03]} 59. Ke3 {[%emt 0:00:10]} Kf5 {[%emt 0:00:01]} 60. Kf3 {[%emt 0:00:00]} Ne6 {[%emt 0:00:06]} 61. Be3 {[%emt 0:00:01]} Nf8 {[%emt 0:00:02]} 62. Bh6 {[%emt 0:00:03]} Nd7 {[%emt 0:00:01]} 63. Be3 {[%emt 0:00:10]} Nb6 {[%emt 0:00:01]} 64. Bd2 {[%emt 0:00:03]} Nc4 {[%emt 0:00:01]} 65. Bc3 {[%emt 0:00:00]} Nb6 {[%emt 0:00:08]} 66. Bd2 {[%emt 0:00:01]} Nd7 {[%emt 0:00:01]} 67. Be3 {[%emt 0:00:01]} c5 {[%emt 0:00:06]} 68. dxc5 {[%emt 0:00:00]} Nxe5+ {[%emt 0:00:00]} 69. Ke2 {[%emt 0:00:01]} Ke4 {[%emt 0:00:02]} 70. Bf4 {[%emt 0:00:02]} Nc6 {[%emt 0:00:02]} 71. Kd2 {[%emt 0:00:01]} d4 {[%emt 0:00:00]} 72. Bd6 {[%emt 0:00:03]} Na5 {[%emt 0:00:01]} 73. Kc2 {[%emt 0:00:10]} Ke3 {[%emt 0:00:11]} 74. Kd1 {[%emt 0:00:01]} Kd3 {[%emt 0:00:01]} 75. Be7 {[%emt 0:00:07]} Nc6 {[%emt 0:00:06]} 76. Bd6 {[%emt 0:00:01]} Na5 {[%emt 0:00:03]} 77. Be7 {[%emt 0:00:01]} Kc4 {[%emt 0:00:01]} 78. Kc2 {[%emt 0:00:10]} Kd5 {[%emt 0:00:01]} 79. Kd3 {[%emt 0:00:09]} Nc4 {[%emt 0:00:01]} 80. c6 {[%emt 0:00:04]} Ne5+ {[%emt 0:00:01]} 0-1

[Event "AI Cup Div-3 2023"]
[Site "Online"]
[Date "2023.09.27"]
[Round "54.1"]
[White "Meier, Georg"]
[Black "Kovalev, Vladislav"]
[Result "1/2-1/2"]
[Annotator "ChessBase"]
[ECO "E06"]
[WhiteElo "2628"]
[BlackElo "2582"]
[PlyCount "60"]
[EventDate "2023.09.18"]
[EventType "k.o."]
[EventCountry "NET"]
[SourceTitle "playchess.com"]
[Source "ChessBase"]
[SourceQuality "1"]
[TimeControl "900+3"]

1. Nf3 {[%emt 0:00:04]} Nf6 {[%emt 0:00:06]} 2. g3 {[%emt 0:00:03]} b6 {[%emt 0:00:09]} 3. Bg2 {[%emt 0:00:01]} Bb7 {[%emt 0:00:00]} 4. O-O {[%emt 0:00:01]} e6 {[%emt 0:00:14]} 5. c4 {[%emt 0:00:01]} Be7 {[%emt 0:00:32]} 6. Nc3 {[%emt 0:00:02]} O-O {[%emt 0:00:29]} 7. d4 {[%emt 0:00:02]} d5 {[%emt 0:00:02]} 8. Ne5 {[%emt 0:00:02]} c6 {[%emt 0:00:25]} 9. e4 {[%emt 0:00:02]} dxc4 {[%emt 0:00:52]} 10. Nxc4 {[%emt 0:00:02]} Nbd7 {[%emt 0:00:00]} 11. b3 {[%emt 0:01:25]} Re8 {[%emt 0:00:04]} 12. Bb2 {[%emt 0:00:02]} b5 {[%emt 0:00:49]} 13. Ne3 {[%emt 0:00:02]} Qb6 {[%emt 0:00:40]} 14. Rc1 {[%emt 0:01:52]} Rad8 {[%emt 0:00:35]} 15. Qc2 {[%emt 0:00:13]} c5 {[%emt 0:01:04]} 16. d5 {[%emt 0:00:10]} exd5 {[%emt 0:00:05]} 17. Ncxd5 {[%emt 0:00:11]} Nxd5 {[%emt 0:00:10]} 18. exd5 {[%emt 0:00:01]} Bf6 {[%emt 0:00:10]} 19. Nf5 {[%emt 0:00:14]} c4 {[%emt 0:00:36]} 20. Rfd1 {[%emt 0:04:47]} Ne5 {[%emt 0:00:51]} 21. Bd4 {[%emt 0:00:56]} Qa6 {[%emt 0:00:01]} 22. bxc4 {[%emt 0:00:10]} bxc4 {[%emt 0:00:49]} 23. Ne3 {[%emt 0:00:33]} Nd3 {[%emt 0:00:45]} 24. Bxf6 {[%emt 0:00:10]} Qxf6 {[%emt 0:00:00]} 25. Rb1 {[%emt 0:00:02]} Ba6 {[%emt 0:00:06]} 26. Rd2 {[%emt 0:02:13]} Qd4 {[%emt 0:01:28]} 27. Nf5 {[%emt 0:00:12]} Qf6 {[%emt 0:00:37]} 28. Ne3 {[%emt 0:00:02]} Qd4 {[%emt 0:00:21]} 29. Nf5 {[%emt 0:00:02]} Qe5 {[%emt 0:00:05]} 30. Ne3 {[%emt 0:00:06]} Qd4 {[%emt 0:01:53]} 1/2-1/2